Workbook

Sheet Priser årsbasis
C3: Princip 1: Ejendom med kun varmefordelingsmålere
C5: Regning fra varmeværk | D5: 100000 | E5: Kr. | F5: Korrektion energi | G5: ja
F6: Korrektion m2 | T6: ja | U6: ja | V6: ja
C7: Heraf faste afgifter | D7: 40000 | E7: Kr. | F7: Energi + m2
C9: Totalt varmeforbrug (hovedvarmemåler) | D9: 120 | E9: MWh | F9: Kontrol 40/60
F10: =(F67+F68)/(D5-D7)*100 -> 58.6925
C11: Antal lejligheder | D11: 10 | E11: stk. | F11: =SUM(F67:F68)/(D5-D7-D27*D42)*100 -> 85
D12: Uden korr. | E12: Med korr. | F12: Prisforhold
C13: Boligareal, sum m2 og m2 korrigeret | D13: 822 | E13: 780 | F13: =E57/D42*100 -> 100
C15: Værelseshaneandele (VHA) | D15: 0 | E15: stk.
C17: Antal beboere | D17: 30 | E17: stk.
C19: Cirkulationstab pr. lejlighed | D19: 150 | E19: W
C21: Sum af varmtvandsmålere m3 | D21: 0 | E21: m3
C23: Skønnet opvarmning af varmt brugsvand | D23: 35 | E23: °K
C25: % af rumvarme til varmetab og opv. af fælleslokaler | D25: 15 | E25: %
C27: Måler/skøn på varmtvandsbeholders primærside | D27: =D17*0.8+D11*D19/1000*8760/1000 -> 37.14 | E27: MWh
D29: Uden korr. | E29: Med korr.
C30: Talte enheder MWh aflæst på energimålere (gulv eller hele lejli | F30: MWh
C32: Talte enheder rad. mål (dimensionsløs) sum | D32: 80000 | E32: 70000 | F32: -
C34: Gulvvarme uden målere sum m2 (gulvareal) | F34: -
C36: Antaget MWh pr år pr m2 gulvvarme | D36: 0.2 | E36: MWh
C38: Rumvarme efter m2 % | D38: 0 | E38: %
C40: Gennemsnitspris pr. MWh | D40: =D5/D9 -> 833.3333333 | E40: kr./MWh
C42: Marginalpris pr. MWh | D42: =(D5-D7)/D9 -> 500 | E42: kr./MWh
C47: Beregning af energibalance og fordelingbeløb
D49: MWh | E49: Marg.pris | F49: Kr | H49: m2 rumv | I49: =F55+F58 -> 6214.5 | J49: =I49/(I49+I50)*100 -> 15 | K49: =J49/100 -> 0.15
C50: Nettoforbrug Varmt vand | D50: =1.16*D23*D21/1000 -> 0 | E50: =D42 -> 500 | F50: =D50*E50 -> 0 | H50: energi rumv | I50: =F54+F57+F56 -> 35215.5 | J50: =I50/(I49+I50)*100 -> 85
C51: Cirkulation, beholdertab og opvarmning af vandet | D51: =D27-D50 -> 37.14 | E51: =E50 -> 500 | F51: =D51*E51 -> 18570 | H51: m2 rumv/totrumv | I51: =I49/(I49+I50)*100 -> 15
C52: Samlet bygningsvarme E1-E2, E2 skønnet | D52: =D9-D27 -> 82.86
C54: Rumvarme MWh efter målere | D54: =D30 -> 0 | E54: =$D$42*(1-D38/100) -> 500 | F54: 0
C55: Varmetab og fælleslokaler | D55: =D25*D52/100 -> 12.429 | E55: =D42 -> 500 | F55: 6214.5
C56: Gulvvarme uden måler | D56: =D34*D36 -> 0 | E56: =E54 -> 500 | F56: =D56*E56 -> 0
C57: Rumvarme efter varmefordelingsmålere | D57: =D52-D30-D55-D56 -> 70.431 | E57: =$D$42*(1-D38/100) -> 500 | F57: 35215.5
C58: Rumvarme efter m2 | D58: =D38/100*(D57+D54+D56) -> 0 | E58: =D42 -> 500 | F58: 0
C59: I alt | F59: =SUM(F50:F58) -> 60000
C60: Fast afgift værk | F60: =D7 -> 40000
C61: Regning i alt | F61: =SUM(F59:F60) -> 100000
C63: Enhedspriser | D63: Enheder | E63: Kr/enhed | F63: I alt
C64: Varmtvandsmåler (m3) | D64: =D21 -> 0 | E64: =IF(D21=0,0,F50/D21) -> 0 | F64: =D64*E64 -> 0
C65: Varmetab VVB og cirkulation (m2) | D65: =D13 -> 822 | E65: =F51/D13 -> 22.59124088 | F65: =D65*E65 -> 18570
C66: Rumvarme (m2) | D66: =E13 -> 780 | E66: =F58/D66 -> 0 | F66: =D66*E66 -> 0
C67: Rumvarme (MWh) | D67: =E30 -> 0 | E67: =F54/(D67+0.000001) -> 0 | F67: =D67*E67 -> 0
C68: Rumvarme VFM | D68: =E32 -> 70000 | E68: =F57/(D68+0.000001) -> 0.5030785714 | F68: =D68*E68 -> 35215.5
C69: Gulvarme uden måler | D69: =E34 -> 0 | E69: =IF(F56=0,0,F56/D69) -> 0 | F69: =D69*E69 -> 0
C70: Varmetab i varmesystem og varme i fællesareal (m2) | D70: =E13 -> 780 | E70: =F55/D70 -> 7.967307692 | F70: =D70*E70 -> 6214.5
C71: Fast afgift værk (m2) | D71: =D13 -> 822 | E71: =F60/D13 -> 48.66180049 | F71: =D71*E71 -> 40000
C72: I alt m2 pris | E72: =E65+E66+E70+E71 -> 79.22034905 | F72: =SUM(F64:F71) -> 100000
C77: Varmeregninger
H78: Korrektion | I78: energi | J78: m2 | K78: energi + m2
C79: middel forbrug | D79: Enheder | E79: Pris | F79: Korrektion | G79: Beløb inkl moms | H79: 20 | I79: =H79 -> 20 | J79: =(9.4*$K$49^2-13.5*$K$49+5.34)*I79 -> 70.53 | K79: =$J$50/100*I79 -> 17
C80: =C71 -> Fast afgift værk (m2) | D80: 80 | E80: =$E$71 -> 48.66180049 | G80: =D80*E80*(100-F80)/100 -> 3892.944039
C81: =C70 -> Varmetab i varmesystem og varme i fællesareal (m2) | D81: =D80 -> 80 | E81: =$E$70 -> 7.967307692 | F81: =(IF($G$5="ja",0)+IF($G$6="ja",J79)+IF($G$7="ja",K79)) -> 0 | G81: =D81*E81*(100-F81)/100 -> 637.3846154
C82: =C68 -> Rumvarme VFM | D82: 7800 | E82: =$E$68 -> 0.5030785714 | F82: =(IF($G$5="ja",I79)+IF($G$6="ja",0)+IF($G$7="ja",K79)) -> 20 | G82: 3139.210286
C83: =C67 -> Rumvarme (MWh) | D83: 0 | E83: =$E$67 -> 0 | F83: =F82 -> 20 | G83: 0
C84: =C65 -> Varmetab VVB og cirkulation (m2) | D84: =D80 -> 80 | E84: =$E$65 -> 22.59124088 | G84: =D84*E84*(100-F84)/100 -> 1807.29927
C85: =C66 -> Rumvarme (m2) | D85: =D80 -> 80 | E85: =$E$66 -> 0 | F85: =F81 -> 0 | G85: =D85*E85*(100-F85)/100 -> 0
C86: =C64 -> Varmtvandsmåler (m3) | D86: 0 | E86: =$E$64 -> 0 | G86: =D86*E86*(100-F86)/100 -> 0
C87: =C69 -> Gulvarme uden måler | D87: 0 | E87: =$E$69 -> 0 | F87: =F82 -> 20 | G87: =D87*E87*(100-F87)/100 -> 0
I89: rumvarme
F90: I alt | G90: =SUM(G80:G89) -> 9476.83821 | I90: =G82+G83+G81+G85+G87 -> 3776.594901
H92: Korrektion | I92: energi | J92: m2 | K92: energi + m2
C93: stort forbrug | D93: Enheder | E93: Pris | F93: Korrektion | G93: Beløb inkl moms | H93: 20 | I93: =H93 -> 20 | J93: =(9.4*$K$49^2-13.5*$K$49+5.34)*I93 -> 70.53 | K93: =$J$50/100*I93 -> 17
C94: =C80 -> Fast afgift værk (m2) | D94: 80 | E94: =$E$71 -> 48.66180049 | G94: =D94*E94*(100-F94)/100 -> 3892.944039
C95: =C81 -> Varmetab i varmesystem og varme i fællesareal (m2) | D95: =D94 -> 80 | E95: =$E$70 -> 7.967307692 | F95: =(IF($G$5="ja",0)+IF($G$6="ja",J93)+IF($G$7="ja",K93)) -> 0 | G95: =D95*E95*(100-F95)/100 -> 637.3846154
C96: Rumvarme VFM | D96: =D82*1.3 -> 10140 | E96: =$E$68 -> 0.5030785714 | F96: =(IF($G$5="ja",I93)+IF($G$6="ja",0)+IF($G$7="ja",K93)) -> 20 | G96: 4080.973371
C97: Rumvarme (MWh) | D97: 0 | E97: =$E$67 -> 0 | F97: =F96 -> 20 | G97: 0
C98: Varmetab VVB og cirkulation (m2) | D98: =D80 -> 80 | E98: =$E$65 -> 22.59124088 | G98: 1807.29927
C99: Rumvarme (m2) | D99: =D94 -> 80 | E99: =$E$66 -> 0 | F99: =F95 -> 0 | G99: =D99*E99*(100-F99)/100 -> 0
C100: Varmtvandsmåler (m3) | D100: 0 | E100: =$E$64 -> 0 | G100: =D100*E100*(100-F100)/100 -> 0
C101: =C69 -> Gulvarme uden måler | D101: 0 | E101: =$E$69 -> 0 | F101: =F96 -> 20 | G101: =D101*E101*(100-F101)/100 -> 0
I103: rumvarme
F104: I alt | G104: =SUM(G94:G103) -> 10418.6013 | I104: =G96+G97+G95+G99+G101 -> 4718.357987 | J104: =I104/I90 -> 1.249368309
H106: Korrektion | I106: energi | J106: m2 | K106: energi + m2
C107: lille forbrug | D107: Enheder | E107: Pris | F107: Korrektion | G107: Beløb inkl moms | H107: 20 | I107: =H107 -> 20 | J107: =(9.4*$K$49^2-13.5*$K$49+5.34)*I107 -> 70.53 | K107: =$J$50/100*I107 -> 17
C108: Fast afgift værk (m2) | D108: 80 | E108: =$E$71 -> 48.66180049 | G108: =D108*E108*(100-F108)/100 -> 3892.944039
C109: Varmetab i varmesystem og varme i fællesareal (m2) | D109: =D108 -> 80 | E109: =$E$70 -> 7.967307692 | F109: =(IF($G$5="ja",0)+IF($G$6="ja",J107)+IF($G$7="ja",K107)) -> 0 | G109: =D109*E109*(100-F109)/100 -> 637.3846154
C110: Rumvarme VFM | D110: 3900 | E110: =$E$68 -> 0.5030785714 | F110: =(IF($G$5="ja",I107)+IF($G$6="ja",0)+IF($G$7="ja",K107)) -> 20 | G110: 1569.605143
C111: Rumvarme (MWh) | D111: 0 | E111: =$E$67 -> 0 | F111: =F110 -> 20 | G111: 0
C112: Varmetab VVB og cirkulation (m2) | D112: =D80 -> 80 | E112: =$E$65 -> 22.59124088 | G112: 1807.29927
C113: Rumvarme (m2) | D113: =D108 -> 80 | E113: =$E$66 -> 0 | F113: =F109 -> 0 | G113: =D113*E113*(100-F113)/100 -> 0
C114: Varmtvandsmåler (m3) | D114: 0 | E114: =$E$64 -> 0 | G114: =D114*E114*(100-F114)/100 -> 0
C115: Gulvarme uden måler | D115: 0 | E115: =$E$69 -> 0 | F115: =F110 -> 20 | G115: =D115*E115*(100-F115)/100 -> 0
I117: rumvarme
F118: I alt | G118: =SUM(G108:G117) -> 7907.233067 | I118: =G110+G111+G109+G113+G115 -> 2206.989758 | J118: =I118/I90 -> 0.584386151
